fUST/lending_fUST_20240924
["ID","MTS","AMOUNT","RATE_DAILY","PERIOD"]
[339046700,1727173849541,-1134.382109,0.0003041,7]
[339046701,1727173849551,-1134.382109,0.0003041,7]
[339046702,1727173849560,-500.0,0.0003041,14]
[339046703,1727173849570,-500.0,0.0003041,14]
[339046704,1727173849582,-500.0,0.0003041,14]
[339046705,1727173849592,-500.0,0.0003041,14]
[339046706,1727173849602,-500.0,0.0003041,14]
[339046707,1727173849611,-500.0,0.0003041,7]
[339046708,1727173849621,-500.0,0.0003041,14]
[339046709,1727173849632,-506.7685614,0.0003041,14]
[339046710,1727173849642,-2012.752588,0.0003041,7]
[339046711,1727173849657,-511.66521746,0.0003041,14]
[339046712,1727173849666,-500.0,0.0003041,14]
[339046713,1727173849676,-2012.752588,0.0003041,7]
[339046714,1727173849685,-2012.752588,0.0003041,7]
[339046715,1727173849695,-2012.752588,0.0003041,7]
[339046716,1727173849704,-503.93147756,0.0003041,14]
[339046717,1727173849714,-505.04422354,0.0003041,14]
[339046718,1727173849723,-151.0,0.0003041,7]
[339046719,1727173849735,-278.51942,0.0003041,7]
[339046720,1727173849744,-500.0,0.0003041,14]
[339046721,1727173849753,-500.0,0.0003041,14]
[339046722,1727173849762,-1023.51,0.0003041,14]
[339046723,1727173849772,-500.0,0.0003041,14]
[339046724,1727173849782,-500.0,0.0003041,14]
[339046725,1727173849791,-500.0,0.0003041,14]
[339046726,1727173849801,-503.34756869,0.0003041,14]
[339046727,1727173849810,-500.0,0.0003041,14]
[339046728,1727173849820,-500.0,0.0003041,14]
[339046729,1727173849829,-870.359719,0.0003041,7]
[339046730,1727173849838,-870.359719,0.0003041,7]
[339046731,1727173849848,-151.0,0.0003041,7]
[339046732,1727173849857,-151.0,0.0003041,7]
[339046733,1727173849866,-151.0,0.0003041,7]
[339046734,1727173849876,-151.0,0.0003041,7]
[339046735,1727173849885,-870.359719,0.0003041,7]
[339046736,1727173849895,-870.359719,0.0003041,7]
[339046737,1727173849904,-500.0,0.0003041,14]
[339046738,1727173849913,-507.63975149,0.0003041,14]
[339046739,1727173849923,-500.0,0.0003041,14]
[339046740,1727173849932,-500.0,0.0003041,14]
[339046741,1727173849942,-959.95,0.0003041,14]
[339046742,1727173849952,-501.65847199,0.0003041,14]
[339046743,1727173849963,-511.77900058,0.0003041,14]
[339046744,1727173849972,-500.0,0.0003041,14]
[339046745,1727173849982,-151.0,0.0003041,7]
[339046746,1727173849992,-500.0,0.0003041,2]
[339046747,1727173850001,-151.0,0.0003041,7]
[339046748,1727173850010,-500.0,0.0003041,14]
[339046749,1727173850020,-250.684516,0.0003041,7]
[339046750,1727173850029,-151.0,0.0003041,7]
[339046751,1727173850039,-250.684516,0.0003041,7]
[339046752,1727173850049,-151.0,0.0003041,7]
[339046753,1727173850058,-570.25,0.0003041,14]
[339046754,1727173850067,-250.684516,0.0003041,7]
[339046755,1727173850077,-1000.0,0.0003041,28]
[339046756,1727173850086,-250.684516,0.0003041,7]
[339046757,1727173850096,-778.23,0.0003041,2]
[339046758,1727173850105,-1000.0,0.0003041,28]
[339046759,1727173850114,-1000.0,0.0003041,28]
[339046760,1727173850123,-1000.0,0.0003041,28]
[339046761,1727173850133,-1000.0,0.0003041,28]
[339046762,1727173850142,-1000.0,0.0003041,28]
[339046763,1727173850151,-1000.0,0.0003041,28]
[339046764,1727173850163,-155.027903,0.0003041,28]
[339046765,1727173850172,-500.0,0.0003041,14]
[339046766,1727173850182,-500.0,0.0003041,14]
[339046767,1727173850192,-500.0,0.0003041,14]
[339046768,1727173850202,-500.0,0.0003041,14]
[339046769,1727173850212,-1000.0,0.0003041,14]
[339046770,1727173850222,-500.0,0.0003041,14]
[339046771,1727173850231,-500.0,0.0003041,14]
[339046772,1727173850241,-597.5,0.0003041,14]
[339046773,1727173850250,-500.0,0.0003041,14]
[339046774,1727173850260,-502.96762169,0.0003041,14]
[339046775,1727173850270,-500.0,0.0003041,14]
[339046776,1727173850279,-500.0,0.0003041,14]
[339046777,1727173850289,-517.83874503,0.0003041,14]
[339046778,1727173850298,-151.0,0.0003041,7]
[339046779,1727173850308,-500.0,0.0003041,14]
[339046780,1727173850317,-151.0,0.0003041,7]
[339046781,1727173850327,-500.0,0.0003041,14]
[339046782,1727173850337,-500.0,0.0003041,14]
[339046783,1727173850346,-576.96,0.0003041,7]
[339046784,1727173850355,-500.0,0.0003041,14]
[339046785,1727173850365,-1688.227986,0.0003041,7]
[339046786,1727173850374,-151.0,0.0003041,7]
[339046787,1727173850384,-1688.227986,0.0003041,7]
[339046788,1727173850394,-151.0,0.0003041,7]
[339046789,1727173850403,-500.0,0.0003041,14]
[339046790,1727173850413,-151.0,0.0003041,7]
[339046791,1727173850423,-500.0,0.0003041,14]
[339046792,1727173850432,-1688.227986,0.0003041,7]
[339046793,1727173850441,-1688.227986,0.0003041,7]
[339046794,1727173850450,-217.274054,0.0003041,7]
[339046795,1727173850460,-217.274054,0.0003041,7]
[339046796,1727173850469,-616.68,0.0003041,14]
[339046797,1727173850478,-217.274054,0.0003041,7]
[339046798,1727173850487,-217.274054,0.0003041,7]
[339046799,1727173850497,-607.38,0.0003041,14]
[339046800,1727173850506,-151.0,0.0003041,7]
[339046801,1727173850515,-151.0,0.0003041,7]
[339046802,1727173850525,-500.0,0.0003041,14]
[339046803,1727173850534,-500.0,0.0003041,14]
[339046804,1727173850544,-500.0,0.0003041,14]
[339046805,1727173850553,-151.0,0.0003041,7]
[339046806,1727173850563,-151.0,0.0003041,7]
[339046807,1727173850572,-500.0,0.0003041,14]
[339046808,1727173850581,-500.0,0.0003041,14]
[339046809,1727173850591,-500.0,0.0003041,14]
[339046810,1727173850600,-503.88593281,0.0003041,14]
[339046811,1727173850610,-500.0,0.0003041,14]
[339046812,1727173850619,-505.09,0.0003041,14]
[339046813,1727173850628,-624.2554436,0.0003041,14]
[339046814,1727173850638,-500.0,0.0003041,14]
[339046815,1727173850648,-3387.181448,0.0003041,7]
[339046816,1727173850659,-3387.181448,0.0003041,7]
[339046817,1727173850668,-500.0,0.0003041,14]
[339046818,1727173850678,-2022.01,0.0003041,14]
[339046819,1727173850688,-500.0,0.0003041,14]
[339046820,1727173850697,-3387.181448,0.0003041,7]
[339046821,1727173850706,-3387.181448,0.0003041,7]
[339046822,1727173850715,-151.0,0.0003041,7]
[339046823,1727173850724,-153.889455,0.0003041,7]
[339046824,1727173850733,-882.06,0.0003041,7]
[339046825,1727173850743,-537.54185501,0.0003041,14]
[339046826,1727173850752,-500.0,0.0003041,14]
[339046827,1727173850761,-500.0,0.0003041,14]
[339046828,1727173850771,-151.0,0.0003041,7]
[339046829,1727173850781,-151.0,0.0003041,7]
[339046830,1727173850790,-501.67406974,0.0003041,14]
[339046831,1727173850799,-395.242181,0.0003041,7]
[339046832,1727173850808,-395.242181,0.0003041,7]
[339046833,1727173850817,-1246.53,0.0003041,14]
[339046834,1727173850826,-500.0,0.0003041,14]
[339046835,1727173850836,-395.242181,0.0003041,7]
[339046836,1727173850845,-395.242181,0.0003041,7]
[339046837,1727173850928,-151.0,0.0003041,7]
[339046838,1727173850938,-500.0,0.0003041,14]
[339046839,1727173850947,-151.0,0.0003041,7]
[339046840,1727173850958,-500.0,0.0003041,14]
[339046841,1727173850968,-517.07105845,0.0003041,14]
[339046842,1727173850977,-151.0,0.0003041,7]
[339046843,1727173850987,-500.0,0.0003041,14]
[339046844,1727173850996,-251.876037,0.0003041,7]
[339046845,1727173851006,-151.0,0.0003041,7]
[339046846,1727173851015,-528.59636784,0.0003041,14]
[339046847,1727173851024,-151.0,0.0003041,7]
[339046848,1727173851033,-500.0,0.0003041,14]
[339046849,1727173851042,-500.0,0.0003041,14]
[339046850,1727173851052,-528.98137698,0.0003041,14]
[339046851,1727173851061,-500.0,0.0003041,14]
[339046852,1727173851070,-500.0,0.0003041,14]
[339046853,1727173851080,-520.8033835,0.0003041,14]
[339046854,1727173851089,-500.0,0.0003041,14]
[339046855,1727173851098,-500.0,0.0003041,14]
[339046856,1727173851108,-500.0,0.0003041,14]
[339046857,1727173851117,-578.31364394,0.0003041,14]
[339046858,1727173851126,-510.03243293,0.0003041,14]
[339046859,1727173851135,-500.0,0.0003041,14]
[339046860,1727173851145,-500.0,0.0003041,14]
[339046861,1727173851155,-646.351361,0.0003041,7]
[339046862,1727173851164,-970.63,0.0003041,14]
[339046863,1727173851174,-500.0,0.0003041,14]
[339046864,1727173851183,-500.0,0.0003041,2]
[339046865,1727173851192,-500.0,0.0003041,14]
[339046866,1727173851202,-500.0,0.0003041,14]
[339046867,1727173851211,-646.351361,0.0003041,7]
[339046868,1727173851220,-541.09,0.0003041,14]
[339046869,1727173851230,-545.2033829,0.0003041,14]
[339046870,1727173851240,-500.0,0.0003041,14]
[339046871,1727173851251,-500.0,0.0003041,2]
[339046872,1727173851262,-193.80428964,0.0003041,14]
[339046873,1727173851283,-500.0,0.0003041,14]
[339046874,1727173851292,-520.0,0.00030411,2]
[339046875,1727173851301,-188.0,0.00030411,2]
[339046876,1727173851310,-219.0,0.00030411,2]
[339046877,1727173851319,-209.0432937,0.00030493,2]
[339046878,1727173851327,-153.0,0.00030542,2]
[339046879,1727173851336,-2080.25901,0.00030575,15]
[339046880,1727173851345,-186.66097608,0.0003065,2]
[339046881,1727173851354,-500.0,0.00030684,14]
[339046882,1727173851363,-151.0,0.00030684,7]
[339046883,1727173851372,-584.69905672,0.00030684,14]
[339046884,1727173851380,-500.0,0.00030684,14]
[339046885,1727173851390,-503.9395233,0.00030684,14]
[339046886,1727173851399,-581.2,0.00030684,14]
[339046887,1727173851408,-620.15501395,0.00030684,14]
[339046888,1727173851417,-500.0,0.00030684,14]
[339046889,1727173851425,-500.0,0.00030684,14]
[339046890,1727173851434,-191.16422076,0.00030684,14]
[339046891,1727173851443,-500.0,0.00030684,14]
[339046892,1727173851452,-500.0,0.00030684,14]
[339046893,1727173851461,-500.0,0.00030684,14]
[339046894,1727173851470,-500.0,0.00030684,14]
[339046895,1727173851480,-481.84326985,0.00030684,14]
[339046896,1727173851488,-500.0,0.00030684,14]
[339046897,1727173851498,-500.0,0.00030684,14]
[339046898,1727173851507,-500.0,0.00030684,14]
[339046899,1727173851516,-622.49894615,0.00030684,14]
[339046900,1727173851525,-500.0,0.00030684,14]
[339046901,1727173851536,-200.0,0.00030684,7]
[339046902,1727173851547,-540.67,0.00030684,14]
[339046903,1727173851558,-500.0,0.00030684,14]
[339046904,1727173851570,-500.0,0.00030684,14]
[339046905,1727173851579,-500.0,0.00030684,14]
[339046906,1727173851588,-500.0,0.00030684,14]
[339046907,1727173851597,-503.56640943,0.00030684,14]
[339046908,1727173851606,-500.0,0.00030684,14]
[339046909,1727173851615,-500.0,0.00030684,14]
[339046910,1727173851624,-500.0,0.00030684,14]
[339046911,1727173851634,-500.0,0.00030684,14]
[339046912,1727173851642,-649.20241262,0.00030684,14]
[339046913,1727173851654,-511.45428361,0.00030684,14]
[339046914,1727173851664,-500.0,0.00030684,14]
[339046915,1727173851673,-212.30852739,0.00030684,14]
[339046916,1727173851682,-500.0,0.00030684,14]
[339046917,1727173851691,-500.0,0.00030684,14]
[339046918,1727173851702,-500.0,0.00030684,14]
[339046919,1727173851711,-171.345925,0.00030684,7]
[339046920,1727173851721,-171.345925,0.00030684,7]
[339046921,1727173851730,-500.0,0.00030684,14]
[339046922,1727173851742,-500.0,0.00030684,14]
[339046923,1727173851751,-500.0,0.00030684,14]
[339046924,1727173851760,-500.0,0.00030684,14]
[339046925,1727173851776,-151.0,0.00030684,7]
[339046926,1727173851787,-500.0,0.00030684,14]
[339046927,1727173851796,-500.0,0.00030684,14]
[339046928,1727173851805,-507.2090994,0.00030684,14]
[339046929,1727173851815,-517.74350634,0.00030684,14]
[339046930,1727173851824,-500.0,0.00030684,14]
[339046931,1727173851834,-501.83507498,0.00030684,14]
[339046932,1727173851843,-252.95031046,0.00030684,14]
[339046933,1727173851852,-500.0,0.00030684,14]
[339046934,1727173851861,-507.23543901,0.00030684,14]
[339046935,1727173851871,-500.0,0.00030684,10]
[339046936,1727173851880,-500.0,0.00030684,14]
[339046937,1727173851890,-153.182075,0.00030684,7]
[339046938,1727173851899,-500.0,0.00030684,14]
[339046939,1727173851909,-500.0,0.00030684,14]
[339046940,1727173851918,-500.0,0.00030684,14]
[339046941,1727173851927,-510.82523051,0.00030684,14]
[339046942,1727173851937,-601.23,0.00030684,14]
[339046943,1727173851947,-500.0,0.00030684,14]
[339046944,1727173851957,-500.0,0.00030684,14]
[339046945,1727173851968,-484.306666,0.00030684,7]
[339046946,1727173851977,-500.0,0.00030684,2]
[339046947,1727173851987,-484.306666,0.00030684,7]
[339046948,1727173851996,-500.0,0.00030684,14]
[339046949,1727173852005,-500.0,0.00030684,14]
[339046950,1727173852014,-500.0,0.00030684,14]
[339046951,1727173852024,-500.0,0.00030684,14]
[339046952,1727173852033,-264.661363,0.00030684,7]
[339046953,1727173852043,-200.0,0.00030684,14]
[339046954,1727173852051,-232.913228,0.00030684,7]
[339046955,1727173852061,-151.0,0.00030684,7]
[339046956,1727173852070,-510.09099396,0.00030684,14]
[339046957,1727173852080,-500.0,0.00030684,14]
[339046958,1727173852090,-500.0,0.00030684,14]
[339046959,1727173852100,-500.0,0.00030684,14]
[339046960,1727173852110,-672.78,0.00030684,14]
[339046961,1727173852120,-501.13561213,0.00030684,14]
[339046962,1727173852130,-500.0,0.00030684,14]
[339046963,1727173852139,-564.99210498,0.00030684,14]
[339046964,1727173852151,-151.0,0.00030684,7]
[339046965,1727173852161,-525.14485444,0.00030684,14]
[339046966,1727173852170,-961.53,0.00030684,14]
[339046967,1727173852180,-500.0,0.00030684,14]
[339046968,1727173852190,-200.05984373,0.00030684,14]
[339046969,1727173852199,-765.35,0.00030684,2]
[339046970,1727173852210,-629.16607564,0.00030684,14]
[339046971,1727173852219,-151.0,0.00030684,7]
[339046972,1727173852230,-500.0,0.00030684,14]
[339046973,1727173852241,-151.0,0.00030684,7]
[339046974,1727173852253,-500.0,0.00030684,10]
[339046975,1727173852265,-580.49,0.00030684,14]
[339046976,1727173852274,-500.0,0.00030684,14]
[339046977,1727173852283,-500.0,0.00030684,14]
[339046978,1727173852293,-503.41095464,0.00030684,14]
[339046979,1727173852302,-500.0,0.00030684,14]
[339046980,1727173852312,-500.0,0.00030684,14]
[339046981,1727173852321,-500.0,0.00030684,14]
[339046982,1727173852331,-500.0,0.00030684,14]
[339046983,1727173852342,-500.0,0.00030684,14]
[339046984,1727173852352,-500.0,0.00030684,14]
[339046985,1727173852363,-500.0,0.00030684,14]
[339046986,1727173852375,-503.66779687,0.00030684,14]
[339046987,1727173852385,-500.0,0.00030684,14]
[339046988,1727173852395,-173.35963106,0.00030684,14]
[339046991,1727174077205,1794.02900504,0.0002,2]
[339047003,1727174829147,-543.05259547,0.0002221,30]
[339047004,1727174842144,-195.87040053,0.0002221,30]
[339047005,1727174842171,-62.17362925,0.0002221,30]
[339047006,1727174845184,-437.82637075,0.0002221,30]
[339047007,1727174845205,-792.8055149,0.00024881,2]
[339047008,1727174853451,1654.85,0.0002,2]
[339047013,1727174957504,158.13288428,0.000222,2]
[339047014,1727174958103,-488.08945381,0.000222,2]
[339047015,1727174958142,-168.60236,0.00024041,2]
[339047016,1727174958164,-1097.98779742,0.00024088,2]
[339047017,1727174974111,-284.93116722,0.00023988,4]
[339047018,1727174974133,-838.23209479,0.00024088,2]
[339047033,1727175032014,-2529.00749471,0.00024088,2]
[339047034,1727175032023,-363.47477,0.00024542,2]
[339047035,1727175032032,-161.360086,0.00024846,2]
[339047036,1727175032042,-1406.41764929,0.00024881,2]
[339047038,1727175032054,-656.90878816,0.00024881,2]
[339047041,1727175038308,-2873.17804765,0.00024881,2]
[339047042,1727175038318,-300.0,0.00024999,2]
[339047043,1727175038443,-300.0,0.00024999,2]
[339047044,1727175038454,-510.42830798,0.00025,30]
[339047045,1727175038464,-431.45353472,0.00025,30]
[339047046,1727175038473,-500.0,0.00025,30]
[339047047,1727175038482,-500.0,0.00025,30]
[339047048,1727175038492,-161.360086,0.00025031,2]
[339047049,1727175038501,-161.360086,0.00025216,2]
[339047050,1727175038510,-680.23248559,0.00025248,2]
[339047051,1727175038519,-161.360086,0.00025401,2]
[339047052,1727175038528,-161.360086,0.00025586,2]
[339047053,1727175038537,-161.360086,0.00025771,2]
[339047054,1727175038546,-169.461173,0.00025781,2]
[339047055,1727175038555,-161.360086,0.00025956,2]
[339047056,1727175038567,-500.0,0.00025996,2]
[339047057,1727175038578,-191.93805586,0.00025996,2]
[339047058,1727175038588,-24900.0,0.00025997,2]
[339047059,1727175038597,-500.0,0.00026,2]
[339047060,1727175038606,-161.360086,0.00026141,2]
[339047061,1727175038616,-537.46595933,0.00026301,2]
[339047062,1727175038627,-122.53404067,0.00026301,2]
[339047063,1727175038641,-1000.0,0.00026548,2]
[339047064,1727175038651,-420.0,0.00027082,2]
[339047065,1727175038660,-500.0,0.00027259,2]
[339047066,1727175038669,-381.784684,0.00027397,2]
[339047067,1727175038680,-420.0,0.00027499,2]
[339047068,1727175038690,-173.938066,0.00027501,2]
[339047069,1727175038700,-362.98436769,0.00027989,2]
[339047109,1727175040070,-137.01563231,0.00027989,2]
[339047111,1727175040083,-164.929,0.0002881,21]
[339047113,1727175040093,-218.0,0.00029219,4]
[339047115,1727175040102,-587.0,0.00029339,2]
[339047117,1727175040111,-151.0,0.0003,120]
[339047119,1727175040120,-1951.7,0.0003,120]
[339047121,1727175040130,-1000.0,0.0003,2]
[339047123,1727175040143,-1000.0,0.0003,2]
[339047125,1727175040152,-1000.0,0.0003,2]
[339047127,1727175040164,-1000.0,0.0003,2]
[339047129,1727175040173,-1000.0,0.0003,2]
[339047131,1727175040182,-302.90088783,0.0003,2]
[339047133,1727175040191,-503.0,0.0003,2]
[339047135,1727175040201,-194.0,0.0003,2]
[339047137,1727175040211,-1209.82254928,0.0003,3]
[339047139,1727175040220,-221.0,0.0003,2]
[339047141,1727175040230,-214.0,0.0003,2]
[339047143,1727175040239,-413.79,0.00030095,3]
[339047145,1727175040249,-344.82,0.00030095,3]
[339047147,1727175040258,-287.35,0.00030095,3]
[339047149,1727175040267,-239.46,0.00030095,3]
[339047151,1727175040276,-262.68454191,0.00030105,2]
[339047153,1727175040286,-268.85547596,0.00030105,2]
[339047155,1727175040295,-500.0,0.00030105,2]
[339047157,1727175040304,-500.0,0.00030105,2]
[339047159,1727175040314,-500.0,0.00030105,2]
[339047161,1727175040323,-500.0,0.00030105,2]
[339047163,1727175040332,-357.48524938,0.00030105,2]
[339047165,1727175040343,-500.0,0.00030105,2]
[339047168,1727175040353,-72224.5437038,0.00030106,4]
[339047169,1727175040362,-15510.45895339,0.00030116,4]
[339047463,1727176028235,-388.13627,0.00024457,2]
[339047464,1727176028260,-264.4424824,0.00024568,2]
[339047465,1727176028282,-547.96927797,0.00024682,2]
[339047467,1727176045118,-152.46065819,0.00024682,2]
[339047468,1727176054117,-416.2472919,0.00024682,2]
[339047477,1727176146113,-164.237221,0.00024041,2]
[339047510,1727176238841,-25.84877872,0.00024542,2]
[339047535,1727176240328,-224.15122128,0.00024542,2]
[339047537,1727176240338,-444.2966598,0.00024568,2]
[339047539,1727176240348,-500.0,0.000246,2]
[339047541,1727176240357,-500.0,0.000246,2]
[339047543,1727176240366,-250.0,0.0002461,2]
[339047545,1727176240376,-250.0,0.00024677,2]
[339047547,1727176240386,-1021.57284984,0.00024682,2]
[339047549,1727176240395,-250.0,0.00024744,2]
[339047551,1727176240404,-186.5930807,0.00024787,2]
[339047553,1727176240414,-250.0,0.00024812,2]
[339047555,1727176240424,-250.0,0.00024879,2]
[339047557,1727176240433,-250.0,0.00024946,2]
[339047559,1727176240442,-445.70209464,0.00025,30]
[339047561,1727176240452,-250.0,0.00025014,2]
[339047563,1727176240461,-250.0,0.00025081,2]
[339047565,1727176240473,-250.0,0.00025148,2]
[339047567,1727176240483,-250.0,0.00025216,2]
[339047569,1727176240494,-250.0,0.00025283,2]
[339047571,1727176240504,-250.0,0.00025342,2]
[339047573,1727176240513,-250.0,0.0002535,2]
[339047575,1727176240523,-250.0,0.00025418,2]
[339047577,1727176240532,-250.0,0.00025485,2]
[339047579,1727176240541,-250.0,0.00025552,2]
[339047581,1727176240551,-300.0,0.00025619,2]
[339047583,1727176240561,-300.0,0.00025619,2]
[339047585,1727176240570,-250.0,0.00025619,2]
[339047587,1727176240579,-250.0,0.00025687,2]
[339047589,1727176240590,-250.0,0.00025754,2]
[339047591,1727176240599,-250.0,0.00025821,2]
[339047593,1727176240608,-500.0,0.00025954,2]
[339047595,1727176240618,-198.67281259,0.00025954,2]
[339047597,1727176240627,-243.81003684,0.00025954,2]
[339047599,1727176240636,-500.0,0.00025954,2]
[339047601,1727176240646,-500.0,0.00025954,2]
[339047603,1727176240656,-500.0,0.00025954,2]
[339047604,1727176240666,-500.0,0.00025954,2]
[339047605,1727176240675,-600.04215824,0.00025954,2]
[339047606,1727176240684,-500.0,0.00025954,2]
[339047607,1727176240694,-24900.0,0.00025955,2]
[339047608,1727176240703,-593.39227111,0.00026,2]
[339047609,1727176240712,-500.0,0.00026,2]
[339047610,1727176240721,-797.55886156,0.00026548,2]
[339047611,1727176240731,-164.237221,0.00027318,2]
[339047612,1727176240741,-362.69545,0.00027397,2]
[339047613,1727176240751,-420.0,0.00027736,2]
[339047614,1727176240761,-300.0,0.00028181,2]
[339047615,1727176240771,-164.93,0.00028807,21]
[339047616,1727176240780,-199.9,0.00029242,4]
[339047617,1727176240790,-153.0,0.00029671,2]
[339047618,1727176240800,-153.0,0.00029671,2]
[339047619,1727176240810,-306.0,0.00029671,2]
[339047630,1727176240932,-153.0,0.00029671,2]
[339047632,1727176240942,-153.0,0.00029671,2]
[339047634,1727176240952,-153.0,0.00029671,2]
[339047636,1727176240962,-153.0,0.00029671,2]
[339047638,1727176240971,-153.0,0.00029671,2]
[339047640,1727176240981,-2000.0,0.0003,30]
[339047642,1727176240991,-194.0,0.0003,2]
[339047644,1727176241000,-504.0,0.0003,2]
[339047646,1727176241009,-2000.0,0.0003,2]
[339047648,1727176241019,-3000.0,0.0003,70]
[339047651,1727176241031,-1334.22373605,0.0003,3]
[339047653,1727176241041,-184.0,0.0003,2]
[339047655,1727176241051,-187.0,0.0003,2]
[339047657,1727176241062,-500.0,0.00030025,2]
[339047659,1727176241071,-255.54944149,0.00030025,2]
[339047661,1727176241081,-188.19883317,0.00030025,2]
[339047663,1727176241091,-500.0,0.00030025,2]
[339047665,1727176241102,-500.0,0.00030025,2]
[339047667,1727176241111,-500.23967457,0.00030025,2]
[339047669,1727176241120,-14110.57078511,0.00030026,5]
[339048131,1727176246601,-500.0,0.00026,2]
[339048133,1727176246612,-572.38718634,0.00026548,2]
[339048135,1727176246621,-274.81553547,0.00029876,12]
[339048144,1727176407720,-4365.91525558,0.00031,120]
[339048145,1727176407752,-2015.39241125,0.0003123,30]
[339048146,1727176407783,-640.0,0.000313,120]
[339048147,1727176407807,-156.80549832,0.000314,120]
[339048148,1727176407834,-174134.2107,0.00031491,30]
[339048149,1727176407860,-640.0,0.000315,120]
[339048150,1727176407891,-640.0,0.000317,120]
[339048151,1727176407920,-609.77386463,0.0003189,64]
[339048152,1727176407944,-640.0,0.000319,120]
[339048153,1727176407969,-54698.64369641,0.00032,30]
[339048154,1727176408000,-640.0,0.000321,120]
[339048155,1727176408026,-500.0,0.000322,120]
[339048156,1727176408050,-500.0,0.000322,120]
[339048157,1727176408074,-500.0,0.000322,120]
[339048158,1727176408099,-500.0,0.000322,120]
[339048159,1727176408124,-500.0,0.000322,120]
[339048160,1727176408148,-626.04,0.000322,120]
[339048161,1727176408173,-500.0,0.000322,120]
[339048162,1727176408199,-500.0,0.000322,120]
[339048163,1727176408223,-322.07,0.000322,120]
[339048164,1727176408246,-640.0,0.000323,120]
[339048165,1727176408271,-500.0,0.00032328,30]
[339048166,1727176408295,-500.0,0.00032328,30]
[339048167,1727176408318,-500.0,0.00032328,30]
[339048168,1727176408342,-500.0,0.00032328,30]
[339048169,1727176408367,-500.0,0.00032328,30]
[339048170,1727176408390,-500.0,0.00032328,30]
[339048171,1727176408414,-500.0,0.00032328,30]
[339048172,1727176408439,-210.0217092,0.00032328,30]
[339048173,1727176408473,-640.0,0.000326,120]
[339048174,1727176408500,-151.0,0.0003274,120]
[339048175,1727176408525,-1629.6196182,0.000328,120]
[339048176,1727176408550,-500.0,0.00032876,120]
[339048177,1727176408574,-500.0,0.00032876,120]
[339048178,1727176408597,-500.0,0.00032876,120]
[339048179,1727176408621,-500.0,0.00032876,120]
[339048180,1727176408645,-517.9605878,0.00032876,120]
[339048181,1727176408670,-2917.05,0.00032876,120]
[339048182,1727176408804,-2917.05,0.00032876,120]
[339048183,1727176408830,-2917.05,0.00032876,120]
[339048184,1727176408854,-2917.05,0.00032876,120]
[339048185,1727176408879,-2917.05,0.00032876,120]
[339048186,1727176408904,-2917.05,0.00032876,120]
[339048187,1727176408928,-2917.05,0.00032876,120]
[339048188,1727176408951,-2917.05,0.00032876,120]
[339048189,1727176408975,-2917.05,0.00032876,120]
[339048190,1727176408999,-2917.05,0.00032876,120]
[339048191,1727176409028,-2917.05,0.00032876,120]
[339048192,1727176409054,-640.0,0.000329,120]
[339048193,1727176409080,-2637.43968906,0.00033,60]
[339048194,1727176409105,-231.80639772,0.00033,30]
[339048195,1727176409132,-2917.05,0.0003315,120]